Cogmind - Beta 13 @@@ ROGUE MODE // 2024.06.28 @ 00:42:24 Player: Playmatrix Result: Destroyed by H-61 Shepherd with Heavy Assault Cannon Performance ------------- Evolutions (2) 1000 Regions Visited (3) 600 Robots Destroyed (77) 385 Value Destroyed (2609) 2609 Prototype IDs (3) 60 Alien Tech Used (0) 0 Bonus (172) 172 TOTAL SCORE: 4826 Bonus ------- High Alert Combat Kills 172 Cogmind --------- Core Integrity 0/550 Matter 214/300 Energy 71/100 System Corruption 0% Temperature Cool (15) Movement Core (250) Ox4 Location -8/Materials Parts ------- > --- POWER (2) -------- (None) > --- PROPULSION (3) --- (None) > --- UTILITY (3) ------ Medium Storage Unit > --- WEAPON (3) ------- Improved Medium Laser > --- INVENTORY (10) --- Improved Heat Sink Improved Power Shielding Mining Laser Peak State ------------ > --- POWER ------------ Deuterium Engine Deuterium Engine > --- PROPULSION ------- Improved Aluminum Leg Improved Aluminum Leg Carbon-fiber Leg > --- UTILITY ---------- Improved Heat Sink Medium Storage Unit Improved Utility Shielding > --- WEAPON ----------- Heavy Particle Cannon Heavy Particle Cannon Flak Cannon > --- INVENTORY -------- Deuterium Engine Aluminum Leg Improved Aluminum Leg Improved Heat Sink Beam Rifle Beam Rifle Particle Gun Heavy Assault Rifle Rocket Launcher Mining Laser [Rating: 31] Favorites ----------- Power Deuterium Engine Engine Deuterium Engine Power Core Light Nuclear Core Propulsion Improved Aluminum Leg Treads Light Treads Leg Improved Aluminum Leg Utility Large Battery Device Improved Heat Sink Storage Large Battery Protection Improved Utility Shielding Weapon Shotgun Energy Gun Beam Rifle Energy Cannon Heavy Particle Cannon Ballistic Gun Shotgun Ballistic Cannon Flak Cannon Launcher Rocket Launcher Build | -11 -10 -9 -8 ------- Run | Yrd Mat Mat Mat Slots Evolved 4 | . . 2 2 Power 1 | . . 1 . Propulsion 1 | . . . 1 Utility 1 | . . 1 . Weapon 1 | . . . 1 Parts Attached 67 | 7 1 42 17 Power 18 | 1 . 14 3 Engine 16 | 1 . 14 1 Core 2 | . . . 2 Reactor . | . . . . Propulsion 17 | 2 . 12 3 Treads 6 | 2 . 4 . Leg 11 | . . 8 3 Wheel . | . . . . Hover . | . . . . Flight . | . . . . Utility 13 | 1 1 8 3 Device 4 | . 1 1 2 Storage 8 | 1 . 7 . Processor . | . . . . Hackware . | . . . . Protection 1 | . . . 1 Artifact . | . . . . Weapon 19 | 3 . 8 8 Energy Gun 5 | . . 4 1 Energy Cannon 4 | . . . 4 Ballistic Gun 7 | 3 . 4 . Ballistic Cannon 2 | . . . 2 Launcher 1 | . . . 1 Special Weapon . | . . . . Impact Weapon . | . . . . Slashing Weapon . | . . . . Piercing Weapon . | . . . . Special Melee Weapon . | . . . . Unidentified Prototypes 2 | . . 1 1 Parts Lost 36 | . 2 15 19 Power 12 | . 1 6 5 Propulsion 9 | . . 5 4 Utility 2 | . . . 2 Weapon 13 | . 1 4 8 Highest Loss Streak 9 | . 1 3 9 To Critical Strikes . | . . . . Average Slot Usage (%) 94 | . 90 94 95 Engine 18 | . 11 19 16 Treads 4 | . 28 3 . Leg 17 | . . 15 24 Device 10 | . 7 11 8 Storage 18 | . 14 22 10 Protection 1 | . . . 6 Energy Gun 5 | . . 7 3 Energy Cannon 4 | . . . 14 Ballistic Gun 11 | . 28 14 . Ballistic Cannon 2 | . . . 8 Naked Turns . | . . . . Heaviest Build 50 | 13 14 38 50 Greatest Support 41 | 40 40 40 41 Greatest Overweight (x) 12 | . . 12 2 Average Overweight (x) . | . . . 1 Largest Inventory Capacity 25 | 8 8 25 10 Average Capacity 9 | 7 8 9 10 Most Carried 10 | 4 6 10 10 Average Carried 8 | 2 5 8 9 Final Capacity 10 | 8 8 10 10 Final Carried 10 | 4 6 10 3 Class Distribution -------------------- 66% | Mutant 18% | Tank 9% | Scavenger-Mutant 5% | Gunner Dominant Class ---------------- Mutant | -10/Materials Mutant | -9/Materials Tank | -8/Materials Resources | -11 -10 -9 -8 ----------- Run | Yrd Mat Mat Mat Matter Collected 1665 | 185 170 792 518 Remotely . | . . . . Salvage Created 2680 | . 119 1162 1399 Parts 144 | . 4 63 77 Haulers Intercepted . | . . . . Recyclers Shooed 7 | . . 2 5 Parts Field Recycled . | . . . . Retrieved Matter . | . . . . Parts Self-Destructed . | . . . . Prevented . | . . . . Kills | -11 -10 -9 -8 ------- Run | Yrd Mat Mat Mat Combat Hostiles Destroyed 62 | . 3 29 30 Guns 33 | . 3 29 1 Cannons 26 | . . . 26 AOE 3 | . . . 3 Classes Destroyed 11 | . 1 6 4 Worker 3 | . . 1 2 Builder 2 | . . . 2 Recycler 3 | . . 1 2 Mechanic 1 | . . . 1 Watcher 6 | . . 4 2 Swarmer 14 | . . 11 3 Grunt 27 | . 3 7 17 Brawler 1 | . . 1 . Sentry 17 | . . 10 7 Specialist 2 | . . . 2 Hunter 1 | . . . 1 Best Kill Streak 10 | . 1 4 10 Combat Bots Only 5 | . 1 4 5 Max Kills in Single Turn 2 | . 1 1 2 Gunslinging . | . . . . Exploded 1 | . . . 1 Melee . | . . . . Uniques/NPCs Destroyed . | . . . . Combat | -11 -10 -9 -8 -------- Run | Yrd Mat Mat Mat Hostile Shots Fired 428 | . 43 170 215 Missed 121 | . 13 47 61 Damage Taken 4620 | . 440 1670 2510 Core 845 | . 40 240 565 Absorbed by Shields . | . . . . Redirected to Shielding 116 | . . . 116 Regen/Repaired (Parts) 92 | . . 92 . Core Remaining (%) 74 | 100 84 40 . Volleys Fired 198 | . 21 104 73 Largest 3 | . 2 2 3 Hottest 218 | . 40 88 218 Shots Fired 425 | . 42 192 191 Gun 248 | . 42 192 14 Cannon 167 | . . . 167 Launcher 10 | . . . 10 Special . | . . . . Kinetic 248 | . 42 145 61 Thermal 164 | . . 44 120 Explosive 10 | . . . 10 Electromagnetic 3 | . . 3 . Robot Hit Streak 15 | . 5 15 9 Robot Miss Streak 8 | . 2 8 7 Penetration Max . | . . . . Secondary Targets 2 | . . 2 . Max Gunslinging Chain 1 | . . 1 . Shots Hit Robots 254 | . 27 123 104 Core Hits 178 | . 9 71 98 Critical Kills 1 | . 1 . . Critical Parts Destroyed 2 | . 1 1 . Critical Strikes 5 | . 2 1 2 Burn 1 | . . . 1 Destroy 3 | . 2 1 . Blast 1 | . . . 1 Melee Attacks . | . . . . Impact . | . . . . Slashing . | . . . . Piercing . | . . . . Sneak Attacks . | . . . . Combat Hostiles . | . . . . Follow-up Attacks . | . . . . Damage Inflicted 5742 | . 298 1779 3665 Guns 2087 | . 298 1671 118 Cannons 2285 | . . . 2285 Explosions 1370 | . . 108 1262 Melee . | . . . . Ramming . | . . . . Kinetic 2297 | . 298 1145 854 Thermal 2165 | . . 616 1549 Explosive 1262 | . . . 1262 Electromagnetic 18 | . . 18 . Impact . | . . . . Slashing . | . . . . Piercing . | . . . . Highest Corruption 2 | . . 2 . Average Corruption 2 | . . 2 . Corruption Purged . | . . . . Corruption Blocked . | . . . . Effects 11 | . . 11 . Message Errors 2 | . . 2 . Matter Fused 3 | . . 3 . Heat Flow Errors 1 | . . 1 . Energy Discharges 2 | . . 2 . Data Loss (minor) 1 | . . 1 . Data Loss (major) 2 | . . 2 . Overload Shots . | . . . . Overflow Damage 102 | . . 67 35 Projectiles 35 | . . . 35 Explosions 67 | . . 67 . Melee . | . . . . Knockbacks 20 | . . . 20 Impact . | . . . . Kinetic 18 | . . . 18 Secondary 2 | . . . 2 Self-Inflicted Damage 93 | . . 66 27 Shots 2 | . . 1 1 Rammed 1 | 1 . . . Targets Rammed 1 | 1 . . . Kicked . | . . . . Crushed . | . . . . Highest Temperature 463 | . . 73 463 Average Temperature 143 | . . 7 171 Received Heat Transfer 1443 | . 249 546 648 Effects 12 | . . . 12 Shutdowns 6 | . . . 6 Energy Bleed 3 | . . . 3 Short Circuit 1 | . . . 1 Damage (minor) 2 | . . . 2 Siege Activations . | . . . . Robots Corrupted . | . . . . Combat Hostiles . | . . . . Parts Fried . | . . . . Impact Corruptions . | . . . . Robots Melted . | . . . . Combat Hostiles . | . . . . Parts Melted 4 | . . 3 1 Heat Transferred 3537 | . . 1021 2516 Parts Sabotaged . | . . . . Parts Stolen . | . . . . Parts Stripped . | . . . . Power Chain Reactions . | . . . . Alert | -11 -10 -9 -8 ------- Run | Yrd Mat Mat Mat Peak Influence 678 | . 75 277 678 Initial 39 | . . 27 39 Average 169 | . 24 115 342 Maximum Alert Level 2 | . . 1 2 Low Security (%) 71 | 100 100 89 21 Level 1 17 | . . 10 40 Level 2 10 | . . . 37 Level 3 . | . . . . Level 4 . | . . . . Level 5 . | . . . . High Security . | . . . . Max Security . | . . . . Squads Dispatched 12 | . . 3 9 Investigation 3 | . . 1 2 Extermination . | . . . . Reinforcement 6 | . . 2 4 Assault 1 | . . . 1 Garrison 2 | . . . 2 Intercept . | . . . . Searches Triggered . | . . . . Construction Impeded 1 | . . . 1 Haulers Reinforced . | . . . . Active Scanning Responses . | . . . . Cargo Convoy Interrupts . | . . . . Stealth | -11 -10 -9 -8 --------- Run | Yrd Mat Mat Mat Distress Signals 5 | . . 4 1 Communications Jammed . | . . . . Distress Signals . | . . . . Times Spotted 89 | . 7 40 42 Peak Tracking Total 8 | . 3 5 8 Tactical Retreats . | . . . . Traps | -11 -10 -9 -8 ------- Run | Yrd Mat Mat Mat Traps Triggered 5 | . 1 3 1 Indirectly . | . . . . Trap Hack Attempts . | . . . . Triggered . | . . . . Disarmed . | . . . . Reprogrammed . | . . . . Reused . | . . . . Traps Extracted . | . . . . Installed . | . . . . Triggered . | . . . . Machines | -11 -10 -9 -8 ---------- Run | Yrd Mat Mat Mat Machines Disabled 8 | . . 2 6 Max in Single Turn 2 | . . 2 1 Garrison Access 1 | . . . 1 Machines Repaired . | . . . . Machines Dismantled . | . . . . Machines Sabotaged . | . . . . Overloaded Fab Kills . | . . . . Hacking | -11 -10 -9 -8 --------- Run | Yrd Mat Mat Mat Machines Accessed 16 | . . 12 4 Terminals 13 | . . 10 3 Fabricators . | . . . . Repair Stations 1 | . . 1 . Recycling Units . | . . . . Scanalyzers 2 | . . 1 1 Garrison Access . | . . . . Total Hacks 37 | . . 28 9 Successful 25 | . . 20 5 Failed 12 | . . 8 4 Catastrophic 3 | . . 1 2 Database Lockouts . | . . . . Manual 12 | . . 9 3 Terminals 27 | . . 22 5 Fabricators . | . . . . Repair Stations 3 | . . 3 . Recycling Units . | . . . . Scanalyzers 7 | . . 3 4 Garrison Access . | . . . . Terminal Hacks 17 | . . 15 2 Record 5 | . . 5 . Alert Level 5 | . . 5 . Unreport Threat 1 | . . 1 . Locate Traps 3 | . . 2 1 Surveillance Status 1 | . . . 1 Zone Layout 2 | . . 2 . Fabricator Hacks . | . . . . Repair Station Hacks 3 | . . 3 . Scan Component 1 | . . 1 . Repair 1 | . . 1 . Refit 1 | . . 1 . Recycling Unit Hacks . | . . . . Scanalyzer 5 | . . 2 3 Insert Component 2 | . . 1 1 Analyze 3 | . . 1 2 Garrison Access Hacks . | . . . . Unauthorized Hacks . | . . . . Terminals . | . . . . Fabricators . | . . . . Repair Stations . | . . . . Recycling Units . | . . . . Scanalyzers . | . . . . Garrison Access . | . . . . Data Cores Recovered . | . . . . Used . | . . . . Hacking Detections 16 | . . 12 4 Full Trace Events 3 | . . 2 1 Feedback Events . | . . . . Feedback Blocked . | . . . . Robot Schematics Acquired . | . . . . Robots Built . | . . . . Authchips . | . . . . Time . | . . . . Total Robot Build Rating . | . . . . Part Schematics Acquired 2 | . . 1 1 Parts Built . | . . . . Authchips . | . . . . Time . | . . . . Total Part Build Rating . | . . . . Parts Repaired 1 | . . 1 . Time 38 | . . 38 . Parts Recycled . | . . . . Recycled Matter . | . . . . Retrieved Matter . | . . . . Retrieved Components . | . . . . Parts Scanalyzed 2 | . . 1 1 Part Schematics Acquired 2 | . . 1 1 Parts Damaged . | . . . . Bothacking | -11 -10 -9 -8 ------------ Run | Yrd Mat Mat Mat Used RIF Installer . | . . . . Robots Hacked . | . . . . Non-combat . | . . . . Combat . | . . . . Robot Hacks Applied . | . . . . Relay Couplers Released 1 | . . . 1 Machine Destruction 1 | . . . 1 Fabnet Peak Effective % . | . . . . Robots Rewired . | . . . . Allies Hacked . | . . . . Hacks Repelled . | . . . . Allies | -11 -10 -9 -8 -------- Run | Yrd Mat Mat Mat Total Allies . | . . . . Largest Group . | . . . . Highest-Rated Group . | . . . . Highest-Rated Ally . | . . . . Total Orders . | . . . . Ally Attacks . | . . . . Total Damage . | . . . . Kills . | . . . . Allies Corrupted . | . . . . Allies Melted . | . . . . Intel | -11 -10 -9 -8 ------- Run | Yrd Mat Mat Mat Robot Analysis Total . | . . . . Derelict Logs Recovered . | . . . . Drone Launches . | . . . . Drone Recoveries . | . . . . Exploration | -11 -10 -9 -8 ------------- Run | Yrd Mat Mat Mat Turns Passed 5249 | 146 336 3305 1462 Spaces Moved 2448 | 86 172 1584 606 Core 15 | 5 . 10 . Treads 554 | 81 172 301 . Legs 1879 | . . 1273 606 Wheels . | . . . . Hover . | . . . . Flight . | . . . . Fastest Speed 50 | 50 160 120 120 Average Speed 180 | 153 160 180 192 Slowest Speed 650 | 160 160 650 260 Overloaded Moves . | . . . . Propulsion Burnouts . | . . . . Robots Hopped . | . . . . Cave-ins Triggered . | . . . . Exploration Rate (%) 44 | 7 30 99 43 Regions Visited 3 Branch Regions . Pre-discovered Areas . | . . . . Known Exits Taken . | . . . . Unknown Exits Taken 3 | 1 1 1 . Scrap Searched . | . . . . Spaces Dug . | . . . . Terrain Destroyed 87 | . . 30 57 Melee . | . . . . Projectile 34 | . . . 34 AOE 53 | . . 30 23 Terrain Rammed . | . . . . Walls Destroyed . | . . . . Machines Disabled . | . . . . Actions | -11 -10 -9 -8 --------- Run | Yrd Mat Mat Mat Total 2894 | 96 195 1851 752 Wait 104 | . . 72 32 Move 2445 | 85 171 1583 606 Hop . | . . . . Pick Up 41 | 3 2 26 10 Fast Attach 27 | 6 1 11 9 Attach 21 | . . 14 7 Detach 3 | . . 3 . Swap 19 | 1 . 17 1 Drop 35 | . . 21 14 Fire 198 | . 21 104 73 Melee . | . . . . Ram . | . . . . Kick . | . . . . Crush 1 | 1 . . . Escape Stasis . | . . . . Rewire . | . . . . Trap . | . . . . Miscellaneous . | . . . . Route ------- -11/Scrapyard -10/Materials -9/Materials (discovered 5 exits: *Mat x3 / [*Min] / [*Sto]) -8/Materials (discovered 1 exit: [*Fac]) History --------- Turn | Location | Event 13 | -11/Scrapyard | Discovered new exit (range 16) 147 | -11/Scrapyard | Entered Materials 318 | -10/Materials | Build established: Mutant 458 | -10/Materials | Discovered new exit (range 16) 483 | -10/Materials | Entered another Materials area 483 | -9/Materials | Evolved 2 slots: Power x1, Utility x1 622 | -9/Materials | Lost 3 parts (2n1w) 753 | -9/Materials | Repaired Carbon-fiber Leg 884 | -9/Materials | Discovered new exit (range 13) 1183 | -9/Materials | Discovered new exit (range 15) 1646 | -9/Materials | Discovered new exit (range 4) 2297 | -9/Materials | Core integrity fell below 50% 2668 | -9/Materials | Discovered new exit (range 9) 2850 | -9/Materials | Build established: Scavenger-Mutant 3350 | -9/Materials | Build established: Mutant 3404 | -9/Materials | Discovered new exit (range 11) 3788 | -9/Materials | Entered another Materials area 3788 | -8/Materials | Evolved 2 slots: Propulsion x1, Weapon x1 4097 | -8/Materials | Build established: Gunner 4597 | -8/Materials | Build established: Tank 5159 | -8/Materials | Lost 8 parts (2p3n3w) 5192 | -8/Materials | Discovered new exit (range 12) 5228 | -8/Materials | Core integrity fell below 50% 5246 | -8/Materials | Core integrity fell below 20% 5250 | -8/Materials | Destroyed by H-61 Shepherd with Heavy Assault Cannon Last Messages --------------- 05235_ U-05 Engineer lays Concrete. 05237_ G-47 Trooper destroyed. 05237_ Destroyed Tractor Beam. 05238_ The unstable cave ceiling collapses. 05238_ U-05 Engineer lays Concrete. 05238_ K-01 Serf cleans the Terminal. 05239_ U-05 Engineer lays Concrete. 05239_ K-01 Serf collects debris. 05240_ U-05 Engineer lays Concrete. 05240_ Imp. Aluminum Leg destroyed. 05240_ Ion Cannon destroyed. 05240_ G-47 Trooper destroyed. 05241_ Acquired 10 matter. 05241_ U-05 Engineer lays Concrete. 05245_ Cooling System destroyed. 05245_ Critical hit (Blast). 05246_ Acquired 4 matter. 05247_ Rocket Launcher destroyed. 05247_ T-07 Excavator destroyed. 05250_ Penetrated by Slug. Map ----- +----------------------------------------------------+ | | | | | | | | | ???????????????????????????????????????????????##? | | ???????????????????????????????????????##?????# ?? | | ??????????????????????????????????????## #######?? | | ??????????????????????????????????????# ===#?? | | ??????????????????????????????????????# """%===#?? | | ?????????????????####??????????######## """ == ### | | ?????????????????# ??????????# """ # "" # | | ????????????###??# ""?????????# """ # # | | ????????????# ?# """"??#????# """ # """ % "# | | ?????????? < #] """"" #????# # """ T# | | ??????????? # """"" #????# # "" "## | | ??????????? = * """"" #????# # %! ## | | ?????????? = g """"" #????#####+###+#####+## | | ?????????? %%%"" #??????# """ | | ?????#####! = #??????# "Y" | | ???? %* H ########?## """" | | ????????? % T #??# """" | | ???????????# uY ####! """" | | ???????????# %% k | | ???????????# %"" =k% | | ???????????#!/ % "" ########/########## | | ???????????#! % %%%@"% #### #????# | | ???????????# % =! !%""" #?##[ "" #???? | | ??????# =! %!!%k% #?##%* ""S #???? | | ??????# % % =!!! ! #?#! "" #???" | | ???? % ! #?## #?? " | | ????######+#############+#######?##=! #??? | | ????????? ???????? ?? ? ???????#!! #??? | | ??????????????????? ?? "??????????# #???#/ | | ??????????????????? ??????????????###########???# | | ????????????????????????????????????????????????# | | ?????????????????????????????????????# ###### | | ?????????????????????????????????????# | | ?????????????????????????????????????# ###### | | ????????????????????????????????????????????????# | | ?????????????????????????????????????????######## | | ?????????????????????????????????????????# # | | ?????????????????????????????????????????# """ #% | | ?????????????????????????????????????????# """" + | | ?????????????????????????????????????????# """" ## | | ?????????????????????????????????????????# %## | | ?????????????????????????????????????????# * * ## | | ?????????????????????????????????????????########? | | ??????????????????????????????????????????????# #? | | ??????????????????????????????????????????????###? | | ?????????????????????????????????????????????????? | +----------------------------------------------------+ Best States ------------- Heat Dissipation 53 Energy Generation 23 Energy Capacity 650 Matter Stores 300 Matter Capacity 300 Sight Range 16 Terrain Scan Density 10 Utility Shielding 66 Evasion (%) 55 Recoil Reduction 2 Item Schematics ----------------- Plasma Cutter | -9/Materials | Scanalyzed Imp. Medium Laser | -8/Materials | Scanalyzed Robot Schematics ------------------ None Fabricated ------------ Nothing Alien Tech Used ----------------- None Achievements -------------- None Challenges ------------ None Game ------ Seed 37 Manual? 1 Play Time 00:56:27 Cumulative 12.2 hours Start 2024.06.27 @ 19:31:46 End 2024.06.28 @ 00:42:24 Sessions 3 Manual Loads 0 Difficulty Rogue Special Mode None Game No. 10 Rogue 7 Adventurer 3 Explorer 0 Win Type - Total 0 Types 0/0/0/0/0/0/0/0/0 Lore% 17 Gallery% 23 Achievement% 16 Wizard Run 0 Options --------- Layout 2 ASCII 1 Keyboard 1 Movement Arrows Keybinds 0 Fullscreen 2 Font 24/Smallcaps Map View 50x44 Zoom Use 0% Tactical HUD 1 Map Filters NONE Filters NONE Steam 1 RUN: 5e281987-18a4-4f57-aba4-6b85074200ea